bitfinex/quotes_SOLUSD_20240620
["timestamp","ask_amount","ask_price","bid_price","bid_amount"]
[1718875993482,37.7675,138.06,137.96,6.5034]
[1718875993652,7.2463,138.0,137.96,13.7518]
[1718875993859,7.2463,138.0,137.96,6.5034]
[1718875994188,37.7675,138.06,137.96,13.7518]
[1718875994189,7.246,138.01,137.96,13.7518]
[1718875994571,7.2464,138.0,137.96,6.5034]
[1718875994973,0.17,138.05,137.96,6.5034]
[1718875995183,65.68,138.05,137.96,6.5034]
[1718875995595,7.2469,137.99,137.96,6.5034]
[1718875997057,7.2478,137.98,137.96,6.5034]
[1718875998299,7.2479,137.97,137.96,6.5034]
[1718875999491,7.2475,137.98,137.96,6.5034]
[1718875999686,7.2462,138.01,137.96,6.8434]
[1718875999994,7.2462,138.01,137.96,14.0917]
[1718876000683,7.2472,137.99,137.96,6.8434]
[1718876000880,41.16,138.05,137.96,6.8434]
[1718876001224,7.2466,138.0,137.96,6.8434]
[1718876001665,41.16,138.05,137.96,14.0918]
[1718876001873,7.2464,138.0,137.96,6.8434]
[1718876002266,41.16,138.05,137.97,0.17]
[1718876002469,7.2453,138.02,137.97,7.9274]
[1718876002662,41.16,138.05,137.97,0.68]
[1718876002898,20.0,138.05,137.98,7.2472]
[1718876003105,7.2453,138.02,137.97,7.9277]
[1718876003675,20.0,138.05,137.97,7.9277]
[1718876004806,7.2459,138.01,137.97,7.9277]
[1718876005300,7.2459,138.01,137.97,0.68]
[1718876005505,7.2455,138.02,137.97,7.9279]
[1718876006199,7.2451,138.03,137.99,0.17]
[1718876006370,7.2455,138.02,137.99,0.34]
[1718876007382,7.2455,138.02,137.98,0.34]
[1718876007584,7.2462,138.01,137.97,0.34]
[1718876008086,7.2464,138.0,137.97,0.17]
[1718876008280,7.2474,137.98,137.96,6.5034]
[1718876008490,7.247,137.99,137.96,6.5034]
[1718876009305,7.2465,138.0,137.96,6.5034]
[1718876009608,7.246,138.01,137.96,6.5034]
[1718876009777,7.246,138.01,137.96,13.7517]
[1718876010411,7.2463,138.0,137.96,13.7517]
[1718876010582,7.2454,138.02,137.96,6.5034]
[1718876010902,7.2452,138.03,137.98,7.2473]
[1718876011210,7.2459,138.01,137.97,0.68]
[1718876011498,7.2463,138.0,137.96,6.5034]
[1718876011805,7.2466,138.0,137.96,6.5034]
[1718876012005,7.246,138.01,137.96,13.7518]
[1718876012205,15.1005,138.03,137.95,0.68]
[1718876012501,20.0,138.02,137.95,0.68]
[1718876012817,7.2465,138.0,137.95,7.9289]
[1718876013712,20.0,138.02,137.95,0.68]
[1718876013713,7.246,138.01,137.95,0.68]
[1718876014009,7.2456,138.02,137.95,0.68]
[1718876014212,7.2456,138.02,137.98,7.4173]
[1718876014422,7.2445,138.04,137.99,7.2466]
[1718876014588,7.2448,138.03,137.99,0.17]
[1718876014901,15.1005,138.07,137.99,0.34]
[1718876015210,7.2445,138.04,138.0,0.17]
[1718876015389,7.245,138.03,137.99,0.34]
[1718876015579,7.245,138.03,137.99,0.17]
[1718876016081,7.2443,138.04,137.99,7.9266]
[1718876016881,7.2448,138.03,137.99,7.9266]
[1718876017079,7.2448,138.03,137.99,0.68]
[1718876017722,7.2448,138.03,137.99,0.51]
[1718876019208,7.2448,138.03,137.99,7.7568]
[1718876020688,7.2448,138.03,137.99,0.51]
[1718876021000,7.2448,138.03,137.99,7.7567]
[1718876021216,7.2445,138.04,137.99,7.7567]
[1718876021381,21.16,138.08,137.99,7.7567]
[1718876021586,7.2451,138.03,137.99,0.51]
[1718876022205,21.16,138.05,137.95,6.0745]
[1718876022513,15.5123,138.03,137.95,6.0745]
[1718876022691,7.2482,137.97,137.95,6.0745]
[1718876023198,7.2476,137.98,137.95,6.0745]
[1718876024107,7.2484,137.97,137.95,6.0745]
[1718876024287,7.2476,137.98,137.95,6.0745]
[1718876025417,7.247,137.99,137.95,6.0745]
[1718876025795,7.2465,138.0,137.96,0.17]
[1718876026003,20.0,138.04,137.97,7.2476]
[1718876026203,7.246,138.01,137.96,7.9281]
[1718876026502,7.2451,138.03,137.98,7.4172]
[1718876026704,7.2451,138.03,137.99,7.2468]
[1718876027700,7.243,138.07,138.02,7.2449]
[1718876027922,7.243,138.07,138.02,0.17]
[1718876028094,7.243,138.07,138.02,7.4151]
[1718876028302,7.243,138.07,138.02,8.86970228]
[1718876028614,21.16,138.1,138.03,0.34]
[1718876028812,7.243,138.07,138.04,0.17]
[1718876029312,7.243,138.07,138.03,0.34]
[1718876029517,20.0,138.09,138.03,0.34]
[1718876029711,21.16,138.1,138.03,0.34]
[1718876030089,7.2435,138.06,138.03,0.34]
[1718876030301,7.2438,138.05,138.02,0.17]
[1718876030545,7.2433,138.06,138.02,0.34]
[1718876030811,7.2439,138.05,138.02,0.68]
[1718876030991,7.2439,138.05,138.01,6.5343]
[1718876031199,7.2434,138.06,138.01,13.7801]
[1718876031407,7.2434,138.06,138.02,0.17]
[1718876031715,7.2428,138.07,138.02,7.7552]
[1718876032200,7.2433,138.06,138.02,0.51]
[1718876033495,7.2426,138.08,138.02,7.7552]
[1718876033722,7.2428,138.07,138.02,7.7552]
[1718876033922,7.2433,138.06,138.01,13.7799]
[1718876034124,7.2437,138.05,138.01,6.5343]
[1718876035123,7.2428,138.07,138.02,0.17]
[1718876035301,7.2424,138.08,138.03,7.2447]
[1718876035504,7.2429,138.07,138.02,7.415]
[1718876036405,49.8105108,138.11,138.01,13.7799]
[1718876036616,7.2437,138.05,138.01,13.7799]
[1718876036816,7.2434,138.06,138.01,13.7799]
[1718876037395,7.2434,138.06,138.01,6.5343]
[1718876037605,7.2437,138.05,138.01,13.7799]
[1718876037924,7.2449,138.03,138.01,6.5343]
[1718876038814,21.16,138.08,137.99,16.2042]
[1718876038815,7.2453,138.02,137.99,16.2042]
[1718876039004,7.2445,138.04,137.99,23.451]
[1718876039620,7.2451,138.03,137.99,16.2042]
[1718876040627,7.2467,138.0,137.95,7.2486]
[1718876040931,7.2479,137.97,137.94,22.6959]
[1718876041114,7.2475,137.98,137.94,22.6959]
[1718876041450,7.2483,137.97,137.94,22.6959]
[1718876042023,7.2474,137.98,137.94,22.6959]
[1718876042403,7.2458,138.01,137.94,22.6959]
[1718876042709,7.2471,137.99,137.94,22.6959]
[1718876042919,7.2471,137.99,137.94,29.9451]
[1718876043312,7.2471,137.99,137.95,0.17]
[1718876043512,273.4,138.08,137.95,0.68]
[1718876043710,7.2449,138.03,137.98,7.4172]
[1718876043912,7.2449,138.03,137.99,0.17]
[1718876044129,7.2444,138.04,137.99,7.4168]
[1718876045003,7.2449,138.03,137.99,0.17]
[1718876045729,7.2449,138.03,137.98,7.5872]
[1718876047509,7.243,138.07,138.02,7.4152]
[1718876047832,7.242,138.09,138.04,7.2438]
[1718876048012,7.2411,138.1,138.05,7.2437]
[1718876048208,7.2422,138.08,138.04,0.17]
[1718876048411,21.16,138.13,138.04,0.34]
[1718876048412,7.2428,138.07,138.04,0.34]
[1718876048636,7.2428,138.07,138.04,0.17]
[1718876049637,21.16,138.13,138.04,0.17]
[1718876049941,7.2425,138.08,138.04,0.17]
[1718876050110,7.2427,138.07,138.03,0.34]
[1718876050624,7.2432,138.06,138.01,7.2457]
[1718876050827,20.0,138.12,138.0,6.2778]
[1718876050828,7.2444,138.04,138.0,6.2778]
[1718876051244,7.2439,138.05,138.0,13.5241]
[1718876052016,7.2432,138.06,138.01,7.5856]
[1718876052514,7.2438,138.05,138.01,0.34]
[1718876053031,7.2433,138.06,138.01,7.5856]
[1718876053407,7.2428,138.07,138.02,7.2453]
[1718876053765,7.2423,138.08,138.03,7.4146]
[1718876054036,21.16,138.1,138.03,0.17]
[1718876054337,7.2435,138.06,138.02,0.51]
[1718876055408,21.16,138.1,138.0,6.2778]
[1718876055618,7.2456,138.02,138.0,6.2778]
[1718876056217,7.2449,138.03,138.0,6.2778]
[1718876057427,60.0605,138.09,138.0,6.2778]
[1718876057612,7.2435,138.06,138.01,7.4155]
[1718876057807,7.2438,138.05,138.01,7.4155]
[1718876058138,7.2444,138.04,138.0,6.6178]
[1718876058635,7.2444,138.04,138.0,13.864]
[1718876058810,7.2439,138.05,138.0,13.864]
[1718876059316,7.2439,138.05,138.01,7.2458]
[1718876059507,7.2434,138.06,138.01,0.17]
[1718876059748,7.2437,138.05,138.01,7.9256]
[1718876060241,7.2433,138.06,138.01,7.9256]
[1718876060731,7.2438,138.05,138.01,0.68]
[1718876062119,7.2452,138.03,138.0,6.2778]
[1718876062749,7.2458,138.01,137.99,15.5739]
[1718876063050,7.2458,138.01,137.96,28.6314]
[1718876063546,7.2455,138.02,137.97,7.2479]
[1718876063715,16.4602,138.07,137.97,7.2477]
[1718876063916,7.2456,138.02,137.97,7.2477]
[1718876064114,7.2456,138.02,137.98,7.2473]
[1718876064332,7.2449,138.03,137.99,7.2468]
[1718876064538,7.2449,138.03,137.98,7.2472]
[1718876065149,7.2449,138.03,137.96,21.3833]
[1718876065150,7.2455,138.02,137.97,7.2477]
[1718876065339,7.2455,138.02,137.98,0.17]
[1718876065721,7.245,138.03,137.98,7.417]
[1718876067841,7.2444,138.04,137.99,7.2468]
[1718876068038,7.2449,138.03,137.98,7.5871]
[1718876068340,7.2449,138.03,137.99,0.34]
[1718876068546,7.2445,138.04,137.99,7.5868]
[1718876069442,7.2445,138.04,138.0,0.34]
[1718876069641,7.2445,138.04,138.0,2.41567752]
[1718876070545,7.2463,138.0,137.96,28.6316]
[1718876070751,7.2463,138.0,137.97,0.17]
[1718876071137,7.2458,138.01,137.97,0.17]
[1718876071922,7.2464,138.0,137.97,0.34]
[1718876072151,7.2464,138.0,137.97,0.17]
[1718876072645,27.2602,138.05,137.93,22.2806]
[1718876072834,65.68,138.04,137.93,22.2806]
[1718876073149,7.2482,137.97,137.93,22.2806]
[1718876073347,7.2476,137.98,137.93,29.5304]
[1718876073730,16.1324,138.0,137.9,16.2892]
[1718876073960,7.2512,137.91,137.88,6.3991]
[1718876074145,7.2516,137.9,137.88,6.3991]
[1718876074337,7.2512,137.91,137.88,6.3991]
[1718876074567,71.5161,137.99,137.88,6.3991]
[1718876074568,7.2518,137.9,137.88,6.3991]
[1718876075242,7.2518,137.9,137.86,16.2892]
[1718876076447,7.2512,137.91,137.86,23.5428]
[1718876076627,7.2512,137.91,137.87,0.51]
[1718876076828,7.2512,137.91,137.88,0.34]
[1718876077661,7.2497,137.94,137.89,0.51]
[1718876077820,20.0,137.93,137.9,0.17]
[1718876078016,51.3461,137.99,137.91,7.251]
[1718876078017,11.81044317,137.99,137.91,7.251]
[1718876078223,287.6494,138.0,137.93,0.17]
[1718876078433,7.2482,137.97,137.93,0.34]
[1718876078638,7.2485,137.96,137.93,0.34]
[1718876078924,7.2485,137.96,137.92,0.17]
[1718876079126,7.2485,137.96,137.92,0.34]
[1718876079746,7.2496,137.94,137.91,6.5786]
[1718876081460,7.2496,137.94,137.9,0.34]
[1718876081677,7.2514,137.91,137.86,29.8134]
[1718876082861,7.2507,137.92,137.87,7.253]
[1718876083358,7.2497,137.94,137.89,7.2521]
[1718876083939,7.2501,137.93,137.88,7.2524]
[1718876084143,7.2501,137.93,137.89,0.17]
[1718876084345,7.2501,137.93,137.89,0.34]
[1718876085464,18.1227,137.95,137.89,0.17]
[1718876085774,7.2523,137.89,137.86,22.56]
[1718876087942,7.2523,137.89,137.87,0.17]
[1718876088572,7.2518,137.9,137.87,0.17]
[1718876090165,7.2524,137.89,137.85,0.17]
[1718876090557,7.2524,137.89,137.85,0.34]
[1718876091167,7.2517,137.9,137.85,7.5942]
[1718876091565,7.2517,137.9,137.82,22.5019]
[1718876091566,7.2532,137.87,137.82,22.5019]
[1718876091957,7.2532,137.87,137.82,29.7574]
[1718876092573,7.2532,137.87,137.83,7.2551]
[1718876092764,7.2532,137.87,137.82,29.7575]
[1718876093160,7.2532,137.87,137.83,7.2552]
[1718876093457,7.2532,137.87,137.82,29.7575]
[1718876093799,7.2546,137.85,137.82,22.5019]
[1718876093952,7.2538,137.86,137.82,22.5019]
[1718876094367,7.2542,137.85,137.82,22.5019]
[1718876094572,7.2539,137.86,137.83,0.17]
[1718876094960,7.2553,137.83,137.82,22.5019]
[1718876095172,0.17,137.92,137.82,6.5771]
[1718876095173,18.1318,137.88,137.82,6.5771]
[1718876095377,7.2543,137.85,137.82,6.5771]
[1718876095772,7.2548,137.84,137.8,7.2566]
[1718876096585,7.2556,137.83,137.79,22.8491]
[1718876097171,7.256,137.82,137.77,7.2583]
[1718876097981,7.2555,137.83,137.78,7.2578]
[1718876098590,7.255,137.84,137.79,7.2573]
[1718876100184,7.2553,137.83,137.79,7.2573]
[1718876100483,21.28,137.86,137.8,7.5968]
[1718876100678,7.255,137.84,137.8,0.17]
[1718876100870,7.255,137.84,137.8,0.34]
[1718876101084,7.2554,137.83,137.79,0.17]
[1718876101288,18.1343,137.86,137.79,7.5973]
[1718876101489,7.255,137.84,137.79,7.5973]
[1718876101848,20.0,137.87,137.8,16.5804]
[1718876101962,7.2529,137.88,137.84,0.17]
[1718876102291,7.2527,137.88,137.84,7.4244]
[1718876102473,7.2527,137.88,137.84,0.17]
[1718876102673,7.2532,137.87,137.83,7.5951]
[1718876103190,7.2532,137.87,137.83,0.34]
[1718876103376,7.2547,137.85,137.82,6.596]
[1718876104184,39.4111,137.89,137.83,0.17]
[1718876104492,27.253,137.88,137.83,7.5951]
[1718876104794,7.2532,137.87,137.83,0.68]
[1718876104990,7.2538,137.86,137.83,0.34]
[1718876105189,7.2542,137.85,137.82,6.596]
[1718876105578,7.2543,137.85,137.82,6.596]
[1718876105772,20.0,137.88,137.83,0.17]
[1718876105973,7.2535,137.87,137.83,0.34]
[1718876106307,20.0,137.86,137.83,0.34]
[1718876106496,7.2528,137.88,137.83,7.5951]
[1718876106690,7.2532,137.87,137.83,7.5951]
[1718876107084,7.2532,137.87,137.83,0.34]
[1718876107471,7.2537,137.86,137.83,0.34]
[1718876107677,7.2547,137.85,137.82,6.596]
[1718876108004,18.1347,137.86,137.79,6.4114]
[1718876108295,7.2564,137.81,137.79,6.4114]
[1718876108483,7.256,137.82,137.79,6.4114]
[1718876108671,41.28,137.85,137.77,16.3113]
[1718876108999,7.2565,137.81,137.77,16.3113]
[1718876110184,7.257,137.8,137.77,16.3113]
[1718876111380,7.2579,137.78,137.77,16.3113]
[1718876111972,27.2579,137.78,137.77,16.3113]
[1718876112484,45.4027,137.78,137.77,16.3113]
[1718876112694,27.2579,137.78,137.77,16.3113]
[1718876114305,72.2579,137.78,137.77,16.3113]
[1718876114609,72.7679,137.78,137.77,16.3113]
[1718876115300,72.9379,137.78,137.77,14.12876783]
[1718876116403,72.7679,137.78,137.77,14.12876783]
[1718876116787,72.9379,137.78,137.77,14.12876783]
[1718876119703,25.4065,137.76,137.75,6.4114]
[1718876120011,111.8565,137.76,137.75,6.4114]
[1718876120900,111.6865,137.76,137.75,6.4114]
[1718876121209,27.259,137.76,137.75,6.4114]
[1718876126210,38.1487,137.76,137.68,7.2631]
[1718876126519,7.2607,137.73,137.68,7.2631]
[1718876126731,7.2607,137.73,137.67,6.337]
[1718876126732,7.2607,137.73,137.69,7.2626]
[1718876127023,7.2602,137.74,137.69,7.2626]
[1718876127515,7.2602,137.74,137.7,0.34]
[1718876130395,7.2611,137.72,137.7,0.17]
[1718876130701,7.2611,137.72,137.69,0.34]
[1718876131346,7.2608,137.73,137.69,0.34]
[1718876132032,7.2602,137.74,137.69,7.6025]
[1718876135026,7.2602,137.74,137.7,7.262]
[1718876135319,294.84347675,137.81,137.71,0.34]
[1718876135528,7.2587,137.77,137.73,0.17]
[1718876136026,7.2587,137.77,137.73,0.34]
[1718876137630,7.2592,137.76,137.73,0.34]
[1718876138011,7.2586,137.77,137.73,0.34]
[1718876139139,7.2586,137.77,137.73,7.6004]
[1718876139640,7.2586,137.77,137.73,0.34]
[1718876140838,7.2581,137.78,137.73,7.6005]
[1718876141418,7.2585,137.77,137.73,7.6005]
[1718876141624,7.2585,137.77,137.73,0.34]
[1718876142139,7.2593,137.76,137.71,7.2615]
[1718876142444,7.2602,137.74,137.69,7.2624]
[1718876143715,7.2602,137.74,137.7,0.34]
[1718876145447,7.2602,137.74,137.7,0.17]
[1718876146739,7.2602,137.74,137.7,7.4321]
[1718876147043,7.2602,137.74,137.7,7.2621]
[1718876149542,7.2596,137.75,137.71,0.17]
[1718876149840,7.2596,137.75,137.7,7.2621]
[1718876149841,7.1,137.74,137.7,7.4319]
[1718876150235,14.36,137.74,137.7,7.4319]
[1718876150448,7.2596,137.75,137.71,7.4315]
[1718876150624,7.1,137.74,137.71,7.4315]
[1718876151026,7.1,137.74,137.71,0.17]
[1718876152157,7.1,137.74,137.7,0.17]
[1718876152158,14.3601,137.74,137.7,0.17]
[1718876152336,7.1,137.73,137.7,0.34]
[1718876153251,7.1,137.73,137.7,7.432]
[1718876153935,7.1,137.73,137.71,7.2616]
[1718876154130,7.1,137.74,137.71,7.2616]
[1718876154455,7.1,137.74,137.7,0.17]
[1718876154456,7.1,137.74,137.7,7.432]
[1718876154647,7.1,137.74,137.71,0.17]
[1718876154947,7.1,137.73,137.71,7.4315]
[1718876155750,7.2596,137.75,137.7,0.17]
[1718876156048,14.36,137.74,137.71,0.17]
[1718876156634,14.36,137.74,137.7,7.262]
[1718876159051,7.1,137.74,137.7,7.262]
[1718876159956,7.1,137.74,137.71,7.2613]
[1718876160157,7.2592,137.76,137.71,7.2613]
[1718876160508,13.09731049,137.8,137.78,7.2576]
[1718876160647,13.09731049,137.8,137.77,7.2583]
[1718876160648,20.19731049,137.8,137.77,7.2583]
[1718876160842,7.2561,137.82,137.77,7.2583]
[1718876160843,7.1,137.81,137.77,7.2583]
[1718876161054,20.0,137.8,137.77,7.2583]
[1718876161639,20.0,137.81,137.77,7.2583]
[1718876161950,13.09731049,137.84,137.76,0.17]
[1718876161951,20.35251049,137.84,137.78,0.34]
[1718876162162,13.09731049,137.86,137.8,0.17]
[1718876162450,20.0,137.85,137.81,7.2563]
[1718876162657,7.2541,137.86,137.81,7.2563]
[1718876162658,7.2538,137.86,137.81,7.2562]
[1718876163246,40.45438303,137.89,137.8,0.34]
[1718876163445,20.0,137.88,137.8,7.5967]
[1718876163641,7.2539,137.86,137.81,0.17]
[1718876163862,7.2539,137.86,137.82,0.17]
[1718876164052,7.2539,137.86,137.82,0.34]
[1718876164263,27.2528,137.88,137.83,7.2551]
[1718876164440,27.2528,137.88,137.84,0.34]
[1718876166147,7.2522,137.89,137.84,7.5947]
[1718876167045,7.2527,137.88,137.84,0.34]
[1718876167662,7.2523,137.89,137.84,7.5947]
[1718876168064,7.2527,137.88,137.84,0.34]
[1718876168265,36.6128,137.93,137.8,6.1407]
[1718876168448,7.2535,137.87,137.81,7.9359]
[1718876168647,7.2535,137.87,137.83,0.17]
[1718876168860,7.2535,137.87,137.83,0.34]
[1718876169644,65.0,137.92,137.82,0.34]
[1718876169955,7.2522,137.89,137.84,7.4246]
[1718876170162,7.2517,137.9,137.86,0.17]
[1718876170368,7.2522,137.89,137.86,0.17]
[1718876170863,7.2522,137.89,137.85,0.34]
[1718876171456,7.2527,137.88,137.85,0.34]
[1718876171954,7.2527,137.88,137.84,0.17]
[1718876172153,7.2532,137.87,137.84,0.34]
[1718876172356,38.1276,137.92,137.84,7.5945]
[1718876172567,7.2522,137.89,137.84,7.5945]
[1718876173248,7.2523,137.89,137.84,7.5945]
[1718876173573,7.2528,137.88,137.84,7.5947]
[1718876174367,7.2528,137.88,137.84,0.34]
[1718876174944,7.2523,137.89,137.84,7.5946]
[1718876175901,20.0,137.92,137.8,6.1407]
[1718876176051,7.2538,137.86,137.81,0.68]
[1718876176257,45.34,137.91,137.83,0.17]
[1718876176258,7.2533,137.87,137.83,0.17]
[1718876176444,7.2533,137.87,137.83,0.34]
[1718876177068,18.1306,137.89,137.81,7.2561]
[1718876177260,65.0,137.88,137.81,7.2563]
[1718876177449,7.2541,137.86,137.81,7.2563]
[1718876177849,7.2543,137.85,137.8,13.3973]
[1718876178070,7.2543,137.85,137.81,7.2563]
[1718876178268,7.2539,137.86,137.81,7.2563]
[1718876178470,7.2539,137.86,137.82,0.17]
[1718876178777,7.2542,137.85,137.81,0.17]
[1718876178957,7.2542,137.85,137.81,0.34]
[1718876179160,20.0,137.88,137.81,0.34]
[1718876179161,18.1331,137.87,137.81,0.34]
[1718876179464,18.1331,137.87,137.8,6.1407]
[1718876179465,7.255,137.84,137.8,6.1407]
[1718876179656,7.255,137.84,137.8,13.3975]
[1718876179852,18.1331,137.87,137.8,13.3975]
[1718876179853,7.2535,137.87,137.8,6.1407]
[1718876180057,20.0,137.88,137.8,6.1407]
[1718876180058,7.254,137.86,137.81,7.2562]
[1718876180283,20.0,137.88,137.8,6.1407]
[1718876180449,7.2536,137.87,137.82,7.2557]
[1718876180656,7.2537,137.86,137.82,7.2557]
[1718876180857,7.2537,137.86,137.82,0.17]
[1718876181066,7.2537,137.86,137.82,0.34]
[1718876181263,7.2533,137.87,137.82,7.5956]
[1718876182877,7.2538,137.86,137.82,7.5956]
[1718876183064,7.2543,137.85,137.81,7.2562]
[1718876183580,7.09,137.85,137.81,7.2562]
[1718876184280,7.09,137.85,137.82,7.2556]
[1718876184466,7.09,137.86,137.82,7.2556]
[1718876184664,7.09,137.86,137.83,7.2552]
[1718876185184,7.09,137.87,137.83,7.2552]
[1718876185362,14.3432,137.87,137.82,14.3456]
[1718876186351,7.2537,137.86,137.82,7.09]
[1718876186761,14.3437,137.86,137.82,0.17]
[1718876186957,14.3437,137.86,137.82,0.34]
[1718876187302,7.09,137.86,137.8,6.1407]
[1718876187489,7.09,137.82,137.77,6.3277]
[1718876187669,7.09,137.82,137.79,7.2573]
[1718876188404,7.2543,137.85,137.8,7.2567]
[1718876188684,14.3448,137.84,137.79,14.3472]
[1718876189063,16.2282,137.94,137.83,6.3277]
[1718876189253,7.2524,137.89,137.85,14.3442]
[1718876189480,7.2524,137.89,137.85,7.09]
[1718876189673,7.2528,137.88,137.85,7.09]
[1718876189871,7.2528,137.88,137.84,7.43]
[1718876190072,18.1274,137.92,137.84,14.6846]
[1718876190073,14.3423,137.89,137.84,14.6846]
[1718876190578,7.2527,137.88,137.84,7.5946]
[1718876190778,7.2527,137.88,137.84,14.6846]
[1718876191085,14.3423,137.89,137.84,7.5946]
[1718876191272,14.3423,137.89,137.84,14.6846]
[1718876191583,7.2528,137.88,137.84,7.5946]
[1718876191782,7.2528,137.88,137.84,0.34]
[1718876192162,20.0,137.93,137.83,6.3277]
[1718876192163,7.2536,137.87,137.83,6.3277]
[1718876192367,7.2538,137.86,137.83,6.3277]
[1718876192772,7.2533,137.87,137.83,6.3277]
[1718876193366,7.2533,137.87,137.83,13.5829]
[1718876193579,7.2533,137.87,137.83,6.3277]
[1718876196774,7.2533,137.87,137.83,13.5829]
[1718876197182,7.2528,137.88,137.83,13.5829]
[1718876197873,20.0,137.93,137.84,0.17]
[1718876198190,7.2519,137.9,137.85,7.254]
[1718876198383,7.2519,137.9,137.86,7.2535]
[1718876198584,7.2519,137.9,137.85,7.2541]
[1718876199169,7.2511,137.91,137.86,7.2535]
[1718876202274,7.2511,137.91,137.87,7.2531]
[1718876202469,7.2511,137.91,137.86,7.2535]
[1718876204488,7.2511,137.91,137.84,0.34]
[1718876204691,7.2511,137.91,137.86,7.2536]
[1718876205389,7.2506,137.92,137.87,7.2531]
[1718876206716,1.25803078,137.95,137.92,7.2504]
[1718876206877,20.0,137.96,137.92,7.2503]
[1718876207483,27.2485,137.96,137.91,7.251]
[1718876207718,20.0,137.96,137.91,7.251]
[1718876207901,7.2485,137.96,137.91,7.251]
[1718876208105,20.0,137.95,137.91,7.251]
[1718876208299,7.2479,137.97,137.9,0.17]
[1718876208493,7.248,137.97,137.92,7.2501]
[1718876209196,7.248,137.97,137.93,7.25]
[1718876209390,23.1759,137.98,137.93,7.25]
[1718876209614,7.248,137.97,137.92,7.2503]
[1718876209917,15.9284,137.98,137.9,0.34]
[1718876210216,34.0481,137.98,137.9,0.34]
[1718876210404,7.2485,137.96,137.91,7.2507]
[1718876210844,7.249,137.95,137.9,7.5914]
[1718876210989,7.2487,137.96,137.91,7.251]
[1718876211212,7.248,137.97,137.92,7.2505]
[1718876211442,7.08,137.96,137.92,7.4205]
[1718876212028,14.3285,137.96,137.92,0.17]
[1718876212201,14.3285,137.96,137.92,0.34]
[1718876212515,7.249,137.95,137.91,7.08]
[1718876212818,7.249,137.95,137.9,14.5015]
[1718876213041,7.2498,137.94,137.9,7.08]
[1718876214222,7.08,137.95,137.89,13.2317]
[1718876214421,7.08,137.93,137.89,6.1517]
[1718876214622,7.08,137.92,137.88,16.4997]
[1718876214810,7.25,137.93,137.88,30.8319]
[1718876215009,14.33,137.93,137.89,7.2521]
[1718876215409,14.33,137.93,137.88,23.5797]
[1718876215410,7.2506,137.92,137.88,23.5797]
[1718876216038,7.2506,137.92,137.88,30.8323]
[1718876216320,14.3302,137.93,137.88,30.8323]
[1718876217224,7.2506,137.92,137.88,23.7523]
[1718876217521,7.2506,137.92,137.88,30.8323]
[1718876217725,14.3302,137.93,137.88,30.8323]
[1718876219005,14.3302,137.93,137.88,23.7523]
[1718876219204,14.3302,137.93,137.88,30.8323]
[1718876221328,7.08,137.94,137.89,14.3321]